bitfinex/quotes_ETHUSD_20251220
["timestamp","ask_amount","ask_price","bid_price","bid_amount"]
[1766238395520,0.001,2985.3,2984.5,5.2849]
[1766238395680,0.3803542,2985.3,2984.5,5.2849]
[1766238396085,0.3803542,2985.3,2984.6,1.5585]
[1766238396306,0.3803542,2985.3,2984.6,5.2849]
[1766238397312,0.001,2985.3,2984.6,9.60109349]
[1766238397512,0.001,2985.3,2984.8,5.2849]
[1766238397717,0.001,2985.5,2985.0,14.88599349]
[1766238399890,0.001,2985.5,2985.1,5.2849]
[1766238400191,0.442,2985.9,2985.2,14.88599349]
[1766238400398,0.442,2985.9,2985.2,14.87139674]
[1766238400917,3.34864415,2986.3,2985.3,5.2849]
[1766238401101,0.442,2986.2,2985.4,14.87139674]
[1766238401705,0.442,2986.2,2985.4,9.58649674]
[1766238402018,0.442,2986.4,2985.4,9.58649674]
[1766238403108,0.001,2985.5,2985.2,15.31339674]
[1766238404388,0.001,2985.5,2985.2,0.442]
[1766238404622,0.001,2985.5,2985.0,9.58649674]
[1766238404827,0.001,2985.5,2985.1,0.442]
[1766238405027,0.001,2985.5,2984.7,9.58649674]
[1766238405226,0.001,2985.5,2984.9,0.442]
[1766238405799,0.001,2985.5,2984.9,5.7269]
[1766238406226,0.001,2985.5,2985.0,3.7264]
[1766238406431,0.001,2985.5,2985.2,5.2849]
[1766238407329,0.001,2985.5,2984.9,13.38142338]
[1766238407525,0.001,2985.5,2985.0,0.62352202]
[1766238407726,0.001,2985.5,2985.3,3.7264]
[1766238408125,0.001,2985.5,2985.3,5.2849]
[1766238409531,3.79078018,2986.2,2985.3,5.2849]
[1766238409532,0.442,2986.2,2985.3,5.2849]
[1766238409728,0.442,2986.2,2985.3,6.14837587]
[1766238409923,3.79073925,2986.2,2985.4,5.2849]
[1766238410124,3.79073925,2986.2,2985.3,0.86347587]
[1766238410619,3.79073925,2986.2,2985.3,6.14837587]
[1766238411837,3.79073925,2986.2,2984.9,3.80229086]
[1766238411838,7.1394785,2986.2,2985.0,5.2849]
[1766238412033,7.1394785,2986.2,2985.0,3.7264]
[1766238412227,7.1394785,2986.2,2984.9,0.45209557]
[1766238412536,3.79073925,2986.2,2985.3,5.2849]
[1766238412833,3.79173925,2986.2,2985.3,5.2849]
[1766238413032,4.50577752,2986.2,2985.3,5.2849]
[1766238413833,3.78986417,2986.1,2985.3,5.2849]
[1766238414910,0.441,2986.1,2985.3,5.2849]
[1766238417135,0.441,2986.1,2985.3,5.7259]
[1766238417321,3.78989673,2986.1,2985.3,5.7259]
[1766238417513,3.78989673,2986.1,2985.3,6.29949956]
[1766238418940,3.78989673,2986.1,2985.3,1.01459956]
[1766238419117,3.34889673,2986.1,2985.3,0.441]
[1766238419317,0.001,2986.2,2985.8,5.29499557]
[1766238420138,0.001,2986.2,2985.7,0.441]
[1766238420352,0.001,2986.2,2986.0,3.7264]
[1766238420560,0.001,2986.2,2985.2,5.29499557]
[1766238420756,0.001,2986.2,2985.3,5.2849]
[1766238420958,0.001,2986.2,2985.4,0.441]
[1766238421259,0.001,2986.1,2985.4,0.441]
[1766238421459,0.001,2986.1,2985.5,5.2849]
[1766238421658,0.001,2986.1,2985.5,5.85749]
[1766238422150,6.69792364,2986.0,2984.6,5.2849]
[1766238422449,0.441,2985.9,2984.7,0.441]
[1766238422754,0.441,2985.9,2984.7,5.7259]
[1766238423141,0.441,2985.9,2984.7,0.441]
[1766238424640,6.69837228,2985.8,2984.7,0.441]
[1766238424821,0.71393723,2985.7,2984.7,0.441]
[1766238427754,3.3494105,2985.6,2984.7,0.441]
[1766238428254,0.442,2985.8,2984.8,5.4128]
[1766238428558,0.442,2985.8,2984.7,0.441]
[1766238428764,0.442,2985.8,2984.7,6.85682658]
[1766238430247,3.79129832,2985.7,2984.9,1.5692]
[1766238430442,3.79129832,2985.7,2984.9,5.4128]
[1766238432257,3.79129832,2985.7,2984.7,1.44402658]
[1766238433365,3.79129832,2985.7,2984.7,6.85682658]
[1766238433660,4.50534899,2985.7,2984.7,6.85682658]
[1766238433974,4.50534899,2985.7,2984.8,5.4128]
[1766238434663,7.85464731,2985.7,2984.7,0.441]
[1766238435262,4.50534899,2985.7,2984.7,0.441]
[1766238436159,7.85464731,2985.7,2984.7,0.441]
[1766238436463,0.78546473,2985.6,2984.7,5.8538]
[1766238437162,0.78546473,2985.6,2984.6,0.002]
[1766238437363,9.58926577,2985.1,2984.6,0.002]
[1766238437574,10.03026577,2985.1,2984.6,0.002]
[1766238437871,0.441,2985.1,2984.6,0.002]
[1766238438545,3.35008375,2985.0,2984.6,0.002]
[1766238438754,0.37910838,2984.9,2984.6,0.002]
[1766238440571,0.37910838,2984.9,2984.4,0.002]
[1766238440572,6.70061644,2984.8,2984.4,1e-08]
[1766238440784,0.442,2984.7,2984.4,1e-08]
[1766238441076,0.442,2984.7,2984.0,0.002]
[1766238441658,10.03831896,2984.7,2984.0,0.002]
[1766238441862,1.67389354,2984.6,2984.0,0.002]
[1766238442770,3.35064499,2984.5,2984.0,0.002]
[1766238443480,6.70128998,2984.5,2984.0,0.002]
[1766238444178,3.35064499,2984.5,2984.0,0.002]
[1766238445079,6.70128998,2984.5,2984.0,0.002]
[1766238445268,0.83751835,2984.4,2984.0,0.002]
[1766238445577,1.27951835,2984.4,2984.0,0.002]
[1766238447184,4.63037932,2984.4,2984.0,0.002]
[1766238450987,4.18837932,2984.4,2984.0,0.002]
[1766238451194,4.63037932,2984.4,2984.0,0.002]
[1766238451775,0.46303793,2984.3,2984.0,0.002]
[1766238452893,3.81393075,2984.3,2984.0,0.002]
[1766238453394,0.46303793,2984.3,2984.0,0.002]
[1766238456706,3.81391079,2984.3,2984.0,0.002]
[1766238456906,0.46303793,2984.3,2984.0,0.002]
[1766238459510,0.90503793,2984.3,2984.0,0.002]
[1766238462592,0.442,2984.3,2984.0,0.002]
[1766238462780,0.442,2984.5,2984.0,0.002]
[1766238463405,0.001,2984.4,2984.0,0.002]
[1766238465847,0.442,2985.0,2984.3,0.01009557]
[1766238466069,0.001,2985.6,2985.0,5.46]
[1766238467316,0.001,2985.6,2984.9,0.442]
[1766238467746,0.001,2985.6,2984.7,16.49858044]
[1766238468516,0.001,2985.6,2984.7,19.84898961]
[1766238468836,0.001,2985.6,2984.7,16.49858044]
[1766238470514,0.001,2985.6,2984.7,0.442]
[1766238470722,4.30863729,2985.5,2984.7,0.442]
[1766238471962,4.30963729,2985.5,2984.7,0.442]
[1766238472432,4.75163729,2985.5,2984.7,0.44]
[1766238472644,4.75163729,2985.5,2984.4,0.442]
[1766238472833,4.75163729,2985.5,2984.5,1.00319721]
[1766238475950,4.75163729,2985.5,2984.5,16.05522283]
[1766238476146,3.79254008,2985.5,2984.5,16.05522283]
[1766238479280,3.79254008,2985.5,2984.5,6.46319721]
[1766238479589,3.79254008,2985.5,2984.5,16.05522283]
[1766238480074,3.35054008,2985.5,2984.5,10.59522283]
[1766238480375,0.442,2985.4,2984.6,6.03797448]
[1766238482080,3.79163931,2985.4,2984.6,0.57797448]
[1766238483471,0.442,2985.4,2984.6,0.57797448]
[1766238483996,3.79166565,2985.4,2984.6,0.57797448]
[1766238484148,0.442,2985.4,2984.4,15.49402562]
[1766238484568,0.442,2985.4,2984.5,5.2939]
[1766238485280,3.79163613,2985.4,2984.5,5.2939]
[1766238486084,0.442,2985.4,2984.5,5.2939]
[1766238486692,0.442,2985.4,2984.4,10.03402562]
[1766238487183,0.442,2985.4,2984.4,15.32792562]
[1766238487387,0.442,2985.4,2984.5,0.002]
[1766238487581,3.79164266,2985.4,2984.5,0.002]
[1766238488493,0.37926427,2985.3,2984.5,0.002]
[1766238491692,0.37926427,2985.3,2984.6,9.59202562]
[1766238493100,0.37926427,2985.3,2984.6,14.88592562]
[1766238500592,0.442,2985.4,2984.6,14.88592562]
[1766238505388,0.443,2985.4,2984.6,9.59202562]
[1766238505589,0.443,2985.4,2984.7,5.09]
[1766238519410,0.443,2985.4,2985.1,5.145]
[1766238519411,0.001,2985.4,2985.1,5.145]
[1766238519813,0.001,2985.4,2985.1,14.73497343]
[1766238520617,0.001,2985.4,2985.1,5.145]
[1766238521195,0.001,2985.4,2984.7,9.72417302]
[1766238521398,0.001,2985.4,2984.7,0.13419959]
[1766238521589,0.001,2985.4,2984.6,5.62050532]
[1766238524218,0.001,2985.4,2984.6,5.587]
[1766238525221,0.001,2985.4,2984.6,0.442]
[1766238526002,0.001,2985.4,2984.6,5.587]
[1766238528089,0.001,2985.4,2984.7,5.145]
[1766238529810,0.001,2985.4,2984.6,3.79252113]
[1766238530122,0.001,2985.4,2984.9,3.7454]
[1766238530720,0.001,2985.4,2985.0,0.03350083]
[1766238536433,0.001,2985.4,2984.9,5.145]
[1766238536634,0.001,2985.4,2984.7,0.37945211]
[1766238536836,0.001,2985.4,2984.7,5.52445211]
[1766238540439,0.001,2985.4,2984.7,0.37945211]
[1766238542612,0.001,2985.4,2984.7,5.52445211]
[1766238544018,0.001,2985.4,2984.7,0.37945211]
[1766238544322,0.001,2985.4,2984.7,5.52445211]
[1766238548656,0.001,2985.4,2984.7,0.37945211]
[1766238548817,0.001,2985.4,2984.6,5.4478]
[1766238549245,0.001,2985.4,2984.6,8.79832384]
[1766238549944,0.001,2985.4,2984.6,5.0058]
[1766238550136,0.001,2985.4,2984.6,0.002]
[1766238554051,0.001,2985.4,2984.6,5.0058]
[1766238554247,0.38035507,2985.4,2984.6,0.002]
[1766238554447,0.38035507,2985.4,2984.8,1.3583]
[1766238554659,0.38035507,2985.4,2984.8,5.0038]
[1766238558756,0.38035507,2985.4,2984.6,0.002]
[1766238558926,0.38035507,2985.4,2984.6,5.0058]
[1766238560020,0.38035507,2985.4,2984.7,5.0038]
[1766238563954,0.001,2985.4,2984.7,5.0038]
[1766238565683,0.001,2985.4,2984.6,0.002]
[1766238568185,0.001,2985.4,2984.2,0.442]
[1766238568186,9.60093016,2984.8,2984.2,0.442]
[1766238568387,0.441,2984.7,2983.7,5.2125]
[1766238568590,9.59083459,2984.9,2983.7,5.2125]
[1766238568591,0.442,2984.9,2984.0,5.2145]
[1766238568760,0.442,2984.9,2984.6,0.002]
[1766238569084,1.00691245,2985.2,2984.6,0.002]
[1766238569854,10.81512893,2985.3,2984.6,0.002]
[1766238569855,0.441,2985.1,2984.6,0.002]
[1766238570258,3.35008375,2985.0,2984.6,0.002]
[1766238570459,0.71411445,2984.9,2984.6,0.002]
[1766238570665,0.441,2984.8,2984.6,0.002]
[1766238571267,0.441,2984.8,2984.0,0.002]
[1766238571468,9.59083459,2984.7,2984.0,0.002]
[1766238572303,6.70106546,2984.6,2984.0,0.002]
[1766238572493,1.62919001,2984.5,2984.0,0.002]
[1766238572689,3.35053273,2984.6,2984.0,0.002]
[1766238572690,0.441,2984.4,2984.0,0.002]
[1766238575696,3.791801,2984.4,2984.0,0.002]
[1766238576702,0.441,2984.4,2984.0,0.002]
[1766238577510,3.79176254,2984.4,2984.0,0.002]
[1766238577807,0.441,2984.4,2984.0,0.002]
[1766238579905,3.35030822,2984.8,2984.0,0.002]
[1766238580105,0.94914331,2984.7,2984.1,4.9728]
[1766238581005,0.442,2984.6,2984.1,4.9728]
[1766238581222,0.442,2984.6,2984.0,0.002]
[1766238581695,0.443,2984.6,2984.0,0.002]
[1766238585115,3.79361104,2984.6,2984.0,0.002]
[1766238585612,3.35161104,2984.6,2984.0,4.9748]
[1766238585914,0.442,2984.5,2984.0,4.9748]
[1766238587525,3.79265367,2984.5,2984.0,0.002]
[1766238588430,3.3515781,2984.6,2984.0,0.002]
[1766238588593,0.442,2984.5,2984.0,4.9748]
[1766238590323,3.79265177,2984.5,2984.0,4.9748]
[1766238592545,3.79265177,2984.5,2984.0,1.3761]
[1766238592754,3.79265177,2984.5,2984.1,4.9728]
[1766238592915,3.79265177,2984.5,2984.0,0.002]
[1766238600933,0.001,2984.6,2984.0,0.002]
[1766238600934,0.001,2984.6,2984.2,4.9728]
[1766238602526,0.001,2984.6,2984.0,5.47228]
[1766238602722,0.001,2984.6,2984.0,0.002]
[1766238602928,9.59737652,2984.5,2984.0,0.002]
[1766238603521,0.001,2984.6,2984.0,0.002]
[1766238606460,9.59737652,2984.1,2983.5,0.002]
[1766238606637,0.442,2984.0,2983.5,0.002]
[1766238608038,3.35131874,2983.9,2983.5,0.002]
[1766238608242,12.94869526,2983.9,2983.5,0.002]
[1766238611256,9.59737652,2983.9,2983.5,0.002]
[1766238611554,0.442,2983.8,2983.5,0.002]
[1766238611955,0.13429916,2983.9,2983.5,0.002]
[1766238612151,10.82128476,2984.5,2983.5,0.54238]
[1766238612152,0.442,2984.0,2983.5,0.54238]
[1766238612327,0.442,2984.0,2983.5,5.94018]
[1766238612933,4.35815471,2984.2,2983.5,3.89410704]
[1766238612934,1.00714907,2984.2,2983.5,3.89410704]
[1766238613275,1.00714907,2984.2,2983.8,5.3978]
[1766238613490,0.442,2984.3,2983.8,5.3978]
[1766238613767,1.00701047,2984.2,2983.8,5.3978]
[1766238613952,1.00701047,2984.2,2983.8,5.93758]
[1766238614347,1.00701047,2984.2,2983.8,0.53978]
[1766238614552,1.00701047,2984.2,2983.7,5.3978]
[1766238614952,1.00701047,2984.2,2983.6,3.9596]
[1766238615163,1.00701047,2984.2,2983.5,3.89410338]
[1766238615383,0.442,2984.4,2983.7,1.4382]
[1766238615545,0.442,2984.4,2983.8,5.3978]
[1766238615746,0.442,2984.4,2983.9,5.3978]
[1766238616474,1.44899695,2984.5,2983.9,5.3978]
[1766238620072,0.442,2984.5,2983.9,5.3978]
[1766238620572,1.00698343,2984.4,2983.9,5.3978]
[1766238623148,1.00698343,2984.4,2983.9,3.5898]
[1766238623350,1.00698343,2984.4,2984.1,3.5898]
[1766238623594,1.00698343,2984.4,2984.1,4.986]
[1766238625554,1.00698343,2984.4,2983.9,0.002]
[1766238625754,1.00798343,2984.4,2983.9,4.988]
[1766238626082,0.001,2984.4,2983.9,4.988]
[1766238626279,0.001,2984.4,2984.0,4.986]
[1766238626574,1.00698343,2984.3,2984.0,4.986]
[1766238627079,0.443,2984.4,2984.0,4.986]
[1766238627277,0.443,2984.4,2983.9,0.002]
[1766238627883,1.44996991,2984.4,2983.9,0.002]
[1766238630582,1.00796991,2984.4,2983.9,0.002]
[1766238630783,1.44996991,2984.4,2984.0,4.986]
[1766238633783,1.44996991,2984.4,2983.9,0.002]
[1766238636786,1.00796991,2984.4,2984.0,5.2232]
[1766238636958,1.00796991,2984.4,2984.0,3.8029]
[1766238637159,1.00796991,2984.4,2984.1,5.2232]
[1766238638994,1.00796991,2984.4,2983.9,0.002]
[1766238639565,1.00796991,2984.4,2983.9,5.2252]
[1766238640496,2.44789155,2984.4,2983.9,5.2252]
[1766238641875,2.44789155,2984.4,2983.9,0.002]
[1766238642076,1.00796991,2984.4,2983.9,0.002]
[1766238644396,0.001,2984.4,2983.9,0.002]
[1766238644569,1.00705103,2984.3,2983.9,0.002]
[1766238645099,1.44905103,2984.3,2983.9,0.002]
[1766238650191,1.00705103,2984.3,2983.9,0.002]
[1766238650498,1.44905103,2984.3,2983.9,0.002]
[1766238651299,1.44905103,2984.3,2983.9,5.2252]
[1766238654077,1.44905103,2984.3,2983.9,0.002]
[1766238654276,1.44905103,2984.3,2983.9,5.2252]
[1766238655211,1.00705103,2984.3,2983.9,5.2252]
[1766238655375,1.44905103,2984.3,2983.9,5.2252]
[1766238657605,1.00705103,2984.3,2983.9,5.2252]
[1766238657803,1.44905103,2984.3,2983.9,5.2252]
[1766238659207,1.00705103,2984.3,2983.9,5.2252]
[1766238659416,0.001,2984.4,2984.1,5.2232]
[1766238659717,0.001,2984.4,2983.9,0.52472]
[1766238660006,0.001,2984.4,2984.0,3.8029]
[1766238660210,0.001,2984.4,2984.2,5.2232]
[1766238660883,0.001,2984.6,2984.3,5.25670869]
[1766238661084,0.001,2984.6,2983.9,0.002]
[1766238661289,0.001,2984.6,2984.0,1.00684486]
[1766238661290,0.442,2984.5,2984.0,1.00684486]
[1766238661511,0.442,2984.5,2983.9,0.002]
[1766238661930,3.79267801,2984.5,2983.9,0.002]
[1766238662229,4.79968848,2984.5,2983.9,0.002]
[1766238662434,0.48006885,2984.4,2983.9,0.002]
[1766238664018,0.442,2984.3,2983.9,0.002]
[1766238665321,1.00801047,2984.6,2983.9,0.002]
[1766238665487,0.442,2984.5,2983.9,0.002]
[1766238665926,1.00801047,2984.6,2983.9,0.002]
[1766238666137,0.442,2984.4,2983.9,0.002]
[1766238667119,0.443,2984.4,2983.9,0.002]
[1766238670342,0.442,2984.3,2983.9,0.002]
[1766238670542,0.001,2984.4,2983.9,0.002]
[1766238670712,0.442,2984.3,2983.9,0.002]
[1766238671834,0.63058581,2984.3,2983.9,0.002]
[1766238676523,0.63158581,2984.3,2983.9,0.002]
[1766238679457,3.98245734,2984.3,2983.9,0.002]
[1766238680753,13.58128434,2984.3,2983.9,0.002]
[1766238681353,10.23041281,2984.3,2983.5,0.002]
[1766238681536,9.598827,2984.0,2983.5,0.002]
[1766238681736,0.442,2983.9,2983.5,0.002]
[1766238682767,0.13429691,2983.8,2983.5,0.002]
[1766238686368,0.57629691,2983.8,2983.5,0.002]
[1766238686667,1.5938093,2983.8,2983.5,0.002]
[1766238689345,4.94525015,2983.8,2983.5,0.002]
[1766238690165,1.5938093,2983.8,2983.5,0.002]
[1766238690464,1.5938093,2983.8,2983.3,0.002]
[1766238692039,1.5938093,2983.8,2983.5,0.002]
[1766238692235,1.11986722,2983.7,2983.5,0.002]
[1766238692440,0.57629691,2983.8,2983.5,0.002]
[1766238701978,3.48572797,2983.8,2983.3,0.002]
[1766238702177,0.442,2983.7,2983.3,0.002]
[1766238702386,0.57631044,2983.7,2983.3,0.002]
[1766238702554,0.442,2983.7,2983.3,0.002]
[1766238702754,0.37934311,2983.6,2983.3,0.002]
[1766238702976,1.38667142,2983.6,2983.3,0.002]
[1766238703283,0.37934311,2983.6,2983.3,0.002]
[1766238703694,1.00732831,2983.5,2983.3,0.002]
[1766238708475,1.44932831,2983.5,2983.3,0.002]
[1766238708677,0.18286714,2983.4,2983.3,0.002]
[1766238709291,0.13431044,2983.4,2983.3,0.002]
[1766238721608,0.442,2983.7,2983.3,4.798]
[1766238721795,0.443,2983.8,2982.9,0.002]
[1766238722177,0.443,2983.8,2982.9,4.798]
[1766238722385,3.79444082,2983.8,2982.9,4.798]
[1766238722704,0.443,2983.8,2982.9,5.62689351]
[1766238722894,1.45026067,2983.8,2982.9,5.62689351]
[1766238724512,4.80173875,2983.8,2982.9,5.62689351]
[1766238724882,1.45026067,2983.8,2982.9,5.62689351]
[1766238725275,4.80174413,2983.8,2982.9,5.62689351]
[1766238725480,3.22598824,2983.8,2982.9,0.83089351]
[1766238725811,0.001,2983.8,2983.4,3.4906]
[1766238725992,0.001,2983.8,2983.4,4.676]
[1766238731917,0.001,2983.8,2983.0,3.79428483]
[1766238732092,0.001,2983.8,2983.1,3.4906]
[1766238732293,0.001,2983.8,2983.2,5.40448848]
[1766238733918,0.001,2983.8,2983.2,0.72848848]
[1766238734108,0.001,2983.8,2983.3,4.676]
[1766238737020,0.001,2983.8,2983.2,0.72848848]
[1766238737213,0.001,2983.8,2983.2,5.40448848]
[1766238737523,0.001,2983.8,2983.3,1.72604885]
[1766238737724,0.001,2983.8,2983.3,5.21664885]
[1766238744539,0.001,2983.8,2983.1,0.002]
[1766238745052,1.00717274,2983.7,2983.1,4.6761]
[1766238745946,0.442,2983.6,2983.1,4.6761]
[1766238746483,1.44917274,2983.7,2983.1,0.002]
[1766238746749,1.00717274,2983.7,2983.2,10.56110797]
[1766238746939,0.443,2983.8,2983.4,1.1648]
[1766238747140,0.443,2983.8,2983.4,4.6741]
[1766238748448,0.001,2983.8,2983.4,4.6741]
[1766238748628,0.001,2983.8,2983.2,4.31237463]
[1766238748830,0.001,2983.8,2983.4,4.6741]
[1766238749730,0.001,2983.8,2983.3,0.43143746]
[1766238749919,0.001,2983.8,2983.4,4.6741]
[1766238753153,0.001,2983.8,2983.3,0.43143746]
[1766238753335,0.001,2983.8,2983.5,4.6741]
[1766238757855,0.001,2983.8,2983.1,0.002]
[1766238758065,0.001,2983.8,2983.2,3.5138]
[1766238758242,0.001,2983.8,2983.3,4.7055]
[1766238758442,0.001,2983.8,2983.1,3.35421392]
[1766238758661,1.00812879,2983.8,2983.2,3.5138]
[1766238759363,0.443,2983.8,2983.2,3.5138]
[1766238759658,1.45020994,2983.8,2983.2,3.5138]
[1766238760535,1.45020994,2983.8,2983.2,4.7055]
[1766238761466,1.45020994,2983.8,2983.1,0.002]
[1766238762347,0.48015459,2983.7,2983.1,0.002]
[1766238762964,4.80170378,2983.8,2983.1,0.002]
[1766238763561,1.45020994,2983.8,2983.1,0.002]
[1766238763761,4.80165958,2983.8,2983.1,0.002]
[1766238764339,4.80164371,2983.8,2983.1,0.002]
[1766238764539,1.45020994,2983.8,2983.1,0.002]
[1766238764736,2.55550991,2983.8,2983.1,0.002]
[1766238767872,2.11350991,2983.8,2983.1,0.002]
[1766238768040,1.44920994,2983.8,2983.5,1.1917]
[1766238768373,1.44920994,2983.8,2983.4,3.5138]
[1766238768558,0.442,2983.8,2983.4,4.7055]
[1766238773971,0.001,2983.8,2983.6,4.7055]
[1766238786202,0.001,2985.4,2983.7,0.441]
[1766238786411,0.001,2985.5,2984.8,9.61081494]
[1766238786698,0.001,2985.5,2984.9,0.442]
[1766238786884,0.001,2985.5,2985.1,4.1473]
[1766238787273,0.001,2985.5,2984.8,4.1473]
[1766238787467,0.001,2985.5,2984.6,0.442]
[1766238787792,0.001,2985.5,2984.9,0.1342158]
[1766238788302,0.001,2985.5,2984.9,3.48438875]
[1766238788798,0.001,2985.5,2984.9,3.35017295]
[1766238789096,0.001,2985.5,2985.0,0.1342158]
[1766238789461,0.001,2985.5,2984.9,3.3501607]
[1766238789682,0.001,2985.5,2985.0,0.13421625]
[1766238789908,0.001,2985.5,2985.1,4.1473]
[1766238790458,0.001,2985.5,2985.0,3.48424609]
[1766238790664,0.001,2985.5,2985.0,0.13421625]
[1766238791610,0.443,2985.5,2985.0,0.13421625]
[1766238792396,0.443,2985.5,2985.0,0.89738451]
[1766238793987,0.443,2985.5,2985.0,4.24746129]
[1766238798300,0.443,2985.5,2985.1,4.1473]
[1766238804616,0.443,2985.5,2985.0,0.89738451]
[1766238804818,0.443,2985.5,2985.0,0.13421625]
[1766238805006,0.443,2985.5,2984.9,4.227]
[1766238805185,0.443,2985.5,2984.9,7.57713051]
[1766238805886,0.443,2985.5,2984.9,4.227]
[1766238806184,0.443,2985.5,2984.9,7.57717697]
[1766238806824,0.443,2985.5,2984.9,8.77059803]
[1766238808198,0.443,2985.5,2984.9,1.19342106]
[1766238808389,0.443,2985.5,2984.8,7.57724254]
[1766238808590,0.443,2985.5,2984.6,3.79250619]
[1766238808591,10.03361624,2985.5,2984.7,1.00662527]
[1766238808792,10.03361624,2985.5,2983.8,3.183]
[1766238808793,9.59061624,2985.2,2983.8,3.183]
[1766238809018,9.59061624,2985.2,2984.2,3.35090709]
[1766238809019,0.95906162,2985.1,2984.2,3.35090709]
[1766238809220,10.03161624,2985.0,2983.9,0.76030956]
[1766238809391,10.03161624,2985.0,2984.1,3.35109211]
[1766238809718,10.03161624,2985.0,2984.1,7.57809211]
[1766238809921,1.00687865,2984.9,2984.1,7.57809211]
[1766238810917,1.00687865,2984.9,2984.6,0.002]
[1766238818308,0.441,2984.8,2984.6,0.002]
[1766238819024,1.00687865,2984.7,2984.5,0.002]
[1766238819216,0.441,2984.9,2984.5,0.002]
[1766238820440,1.44782459,2984.9,2984.5,0.002]
[1766238826148,1.44882459,2984.9,2984.0,3.35117465]
[1766238826442,0.442,2984.9,2984.3,0.9591]
[1766238826649,1.00689217,2984.8,2984.3,3.8602]
[1766238829540,1.00689217,2984.8,2984.1,7.21125357]
[1766238829850,1.00689217,2984.8,2984.0,0.7143581]
[1766238829851,1.00689217,2984.8,2984.2,3.8602]
[1766238830650,1.00689217,2984.8,2983.9,0.441]
[1766238830949,1.0096633,2984.7,2984.0,7.21140347]
[1766238831252,0.442,2984.9,2984.1,3.8602]
[1766238831654,1.00694963,2984.6,2984.1,3.8602]
[1766238834450,1.00694963,2984.6,2984.0,0.002]
[1766238835759,10.03750386,2984.5,2984.0,0.002]
[1766238835946,11.14194921,2984.5,2984.0,0.002]
[1766238836144,1.54544535,2984.5,2984.0,0.002]
[1766238836454,2.5524254,2984.5,2984.0,0.002]
[1766238837552,9.59936754,2984.4,2984.0,0.002]
[1766238837927,2.5524254,2984.5,2984.0,0.002]
[1766238839157,2.5524254,2984.5,2983.5,3.35376594]
[1766238839158,10.81454683,2984.4,2983.5,3.8622]
[1766238839359,10.81454683,2984.4,2983.6,3.8602]
[1766238840450,1.00714907,2984.3,2984.0,0.002]
[1766238842058,9.59936754,2984.2,2983.5,0.002]
[1766238842365,9.59936754,2984.0,2983.4,0.002]
[1766238843449,1.44814907,2984.1,2983.4,0.002]
[1766238845465,9.59936754,2984.0,2983.4,0.002]
[1766238845664,10.82233616,2984.0,2983.4,0.002]
[1766238846141,1.00715584,2983.9,2983.4,0.002]
[1766238850072,1.00715584,2983.9,2983.3,0.002]
[1766238853562,10.60652338,2983.9,2983.3,0.002]
[1766238854085,9.59936754,2983.9,2983.3,0.002]
[1766238854287,1.08223362,2983.8,2983.3,0.002]
[1766238854486,0.441,2983.7,2983.3,0.002]
[1766238858282,1.08223362,2983.8,2983.3,3.8664]
[1766238858475,0.441,2983.8,2983.4,3.8644]
[1766238859188,0.441,2983.8,2983.3,0.002]
[1766238859378,0.441,2983.8,2983.5,3.8644]
[1766238860688,0.441,2983.8,2983.3,0.002]
[1766238864267,0.441,2983.8,2983.3,3.8664]
[1766238866465,0.441,2983.8,2983.3,0.002]
[1766238875092,0.441,2983.8,2983.4,3.6888]
[1766238879999,1.00820656,2983.9,2983.4,0.36908]
[1766238880208,0.001,2983.9,2983.5,0.8529]
[1766238880521,0.001,2983.8,2983.7,3.6888]
[1766238880891,0.001,2983.9,2983.7,3.6888]
[1766238899946,0.441,2984.1,2983.4,0.002]
[1766238900237,0.441,2984.1,2983.5,3.6888]
[1766238900443,0.441,2984.1,2983.4,0.002]
[1766238900631,0.441,2984.1,2983.6,0.8529]
[1766238900938,0.441,2984.1,2983.4,0.002]
[1766238900939,0.441,2984.1,2983.8,0.8529]
[1766238901140,0.441,2984.1,2983.8,3.6888]
[1766238901746,0.441,2984.1,2983.4,0.002]
[1766238902048,0.441,2984.1,2983.5,3.6888]
[1766238905255,0.441,2984.1,2983.5,3.6908]
[1766238905546,0.442,2984.1,2983.5,3.6908]
[1766238905721,0.442,2984.1,2983.6,2.7597]
[1766238905921,0.441,2984.0,2983.8,2.637]
[1766238906122,0.442,2984.1,2983.6,0.7713]
[1766238906535,0.441,2984.2,2983.6,0.7713]
[1766238907934,0.441,2984.2,2983.7,2.7597]
[1766238908135,0.441,2984.2,2983.8,3.531]
[1766238911465,0.7713,2984.3,2983.8,3.531]
[1766238911658,0.85320623,2984.2,2983.5,0.002]
[1766238911857,0.85320623,2984.2,2983.6,3.531]
[1766238912265,0.85320623,2984.2,2983.5,0.002]
[1766238912669,0.85320623,2984.2,2983.7,0.7713]
[1766238912965,0.85320623,2984.2,2983.7,3.531]
[1766238914046,0.442,2984.2,2983.7,3.531]
[1766238915446,0.001,2984.2,2983.6,0.002]
[1766238915645,0.001,2984.2,2983.9,3.531]
[1766238915646,0.442,2984.2,2983.9,3.531]
[1766238916493,1.44910174,2984.2,2983.9,3.531]
[1766238917159,0.17615559,2984.8,2983.6,3.35365567]